[Event "Titled Tuesday Blitz November 22 Late 2022"]
[White "Onslow, Alfie"]
[Black "Bluebaum, Matthias"]
[WhiteFideId "436976"]
[BlackFideId "24651516"]
[WhiteElo "2307"]
[BlackElo "2955"]
[Result "0-1"]
[Round "03"]
[TimeControl "180+1"]
[Date "2022.11.23"]
[WhiteClock "0:00:05"]
[BlackClock "0:01:44"]

1. e4 {[%clk 0:03:00]}  e6 {[%clk 0:03:00]} 2. d4 {[%clk 0:02:58]}  d5 {[%clk 0:03:00]} 3. e5 {[%clk 0:02:59]}  c5 {[%clk 0:03:01]} 4. c3 {[%clk 0:02:59]}  Nc6 {[%clk 0:03:01]} 5. Nf3 {[%clk 0:02:59]}  Nge7 {[%clk 0:03:02]} 6. Bd3 {[%clk 0:02:57]}  cxd4 {[%clk 0:03:02]} 7. cxd4 {[%clk 0:02:57]}  Nf5 {[%clk 0:03:03]} 8. Bxf5 {[%clk 0:02:52]}  exf5 {[%clk 0:03:03]} 9. O-O {[%clk 0:02:53]}  Be7 {[%clk 0:03:03]} 10. Nc3 {[%clk 0:02:53]}  Be6 {[%clk 0:03:03]} 11. a3 {[%clk 0:02:50]}  g5 {[%clk 0:03:03]} 12. b4 {[%clk 0:02:49]}  a6 {[%clk 0:02:54]} 13. Rb1 {[%clk 0:02:48]}  f4 {[%clk 0:02:51]} 14. Ne1 {[%clk 0:02:46]}  Bf5 {[%clk 0:02:50]} 15. Rb2 {[%clk 0:02:38]}  Rc8 {[%clk 0:02:48]} 16. Na4 {[%clk 0:02:22]}  Nxd4 {[%clk 0:02:36]} 17. Bxf4 {[%clk 0:02:21]}  Ne6 {[%clk 0:02:28]} 18. Bg3 {[%clk 0:01:55]}  b5 {[%clk 0:02:19]} 19. Nc5 {[%clk 0:01:52]}  Nxc5 {[%clk 0:02:16]} 20. bxc5 {[%clk 0:01:51]}  Rxc5 {[%clk 0:02:17]} 21. Nd3 {[%clk 0:01:45]}  Rc4 {[%clk 0:02:16]} 22. Nb4 {[%clk 0:01:41]}  d4 {[%clk 0:02:05]} 23. Nxa6 {[%clk 0:01:14]}  Qa5 {[%clk 0:02:04]} 24. Nb4 {[%clk 0:00:34]}  Qxa3 {[%clk 0:02:03]} 25. Rb3 {[%clk 0:00:35]}  Qa4 {[%clk 0:02:01]} 26. Nd3 {[%clk 0:00:22]}  Rc3 {[%clk 0:01:58]} 27. Rxc3 {[%clk 0:00:19]}  Qxd1 {[%clk 0:01:58]} 28. Rc8+ {[%clk 0:00:15]}  Bxc8 {[%clk 0:01:58]} 29. Rxd1 {[%clk 0:00:15]}  O-O {[%clk 0:01:59]} 30. f4 {[%clk 0:00:11]}  Bg4 {[%clk 0:01:54]} 31. Rc1 {[%clk 0:00:11]}  Bf5 {[%clk 0:01:54]} 32. Nf2 {[%clk 0:00:09]}  g4 {[%clk 0:01:52]} 33. Rd1 {[%clk 0:00:05]}  Rd8 {[%clk 0:01:50]} 34. Nd3 {[%clk 0:00:06]}  b4 {[%clk 0:01:51]} 35. Be1 {[%clk 0:00:05]}  b3 {[%clk 0:01:51]} 36. Nb2 {[%clk 0:00:06]}  Rc8 {[%clk 0:01:45]} 37. Bd2 {[%clk 0:00:06]}  Rc2 {[%clk 0:01:45]} 38. Na4 {[%clk 0:00:06]}  b2 {[%clk 0:01:45]} 39. h3 {[%clk 0:00:05]}  Rxd2 {[%clk 0:01:44]} 40. Rxd2 {[%clk 0:00:05]}  b1=Q+ {[%clk 0:01:44]} 0-1


[Site "https://www.chess.com"]

[Event "Titled Tuesday Blitz November 22 Late 2022"]
[White "Paiva, Henrique M A Albergaria"]
[Black "Pakleza, Zbigniew"]
[WhiteFideId "1920995"]
[BlackFideId "1119290"]
[WhiteElo "1953"]
[BlackElo "2411"]
[Result "1/2-1/2"]
[Round "03"]
[TimeControl "180+1"]
[Date "2022.11.22"]
[WhiteClock "0:00:21"]
[BlackClock "0:00:04"]

1. Nf3 {[%clk 0:03:00]}  d5 {[%clk 0:02:59]} 2. d4 {[%clk 0:02:59]}  Bf5 {[%clk 0:02:55]} 3. g3 {[%clk 0:02:56]}  e6 {[%clk 0:02:55]} 4. Bg2 {[%clk 0:02:57]}  Nf6 {[%clk 0:02:55]} 5. O-O {[%clk 0:02:57]}  Be7 {[%clk 0:02:56]} 6. c4 {[%clk 0:02:58]}  c6 {[%clk 0:02:57]} 7. b3 {[%clk 0:02:56]}  Nbd7 {[%clk 0:02:56]} 8. Bb2 {[%clk 0:02:57]}  O-O {[%clk 0:02:56]} 9. Nc3 {[%clk 0:02:55]}  h6 {[%clk 0:02:56]} 10. Re1 {[%clk 0:02:54]}  a6 {[%clk 0:02:37]} 11. h3 {[%clk 0:02:46]}  b5 {[%clk 0:02:35]} 12. c5 {[%clk 0:02:33]}  a5 {[%clk 0:02:35]} 13. Nh4 {[%clk 0:02:23]}  Bh7 {[%clk 0:02:32]} 14. f4 {[%clk 0:02:23]}  b4 {[%clk 0:02:26]} 15. Na4 {[%clk 0:02:21]}  Ne4 {[%clk 0:02:25]} 16. Bxe4 {[%clk 0:02:16]}  Bxe4 {[%clk 0:02:23]} 17. Nf3 {[%clk 0:02:09]}  Qc7 {[%clk 0:01:44]} 18. Nd2 {[%clk 0:02:01]}  Bh7 {[%clk 0:01:41]} 19. e4 {[%clk 0:02:00]}  dxe4 {[%clk 0:01:38]} 20. Nxe4 {[%clk 0:02:00]}  Rad8 {[%clk 0:01:32]} 21. Qe2 {[%clk 0:01:59]}  Rfe8 {[%clk 0:01:16]} 22. Kh2 {[%clk 0:01:55]}  Bxe4 {[%clk 0:00:36]} 23. Qxe4 {[%clk 0:01:54]}  Nf6 {[%clk 0:00:37]} 24. Qf3 {[%clk 0:01:50]}  h5 {[%clk 0:00:37]} 25. Nb6 {[%clk 0:01:43]}  h4 {[%clk 0:00:37]} 26. g4 {[%clk 0:01:38]}  Nd5 {[%clk 0:00:37]} 27. Nxd5 {[%clk 0:01:33]}  Rxd5 {[%clk 0:00:38]} 28. Re5 {[%clk 0:01:32]}  Red8 {[%clk 0:00:38]} 29. Rae1 {[%clk 0:01:28]}  Bf6 {[%clk 0:00:36]} 30. Rxd5 {[%clk 0:01:28]}  Rxd5 {[%clk 0:00:37]} 31. Qe4 {[%clk 0:01:21]}  Qd7 {[%clk 0:00:31]} 32. Rd1 {[%clk 0:00:39]}  Bd8 {[%clk 0:00:28]} 33. Kg2 {[%clk 0:00:36]}  f5 {[%clk 0:00:24]} 34. gxf5 {[%clk 0:00:35]}  Rxf5 {[%clk 0:00:24]} 35. Re1 {[%clk 0:00:35]}  Kf7 {[%clk 0:00:24]} 36. Kf3 {[%clk 0:00:34]}  Bf6 {[%clk 0:00:22]} 37. Rg1 {[%clk 0:00:30]}  Qd5 {[%clk 0:00:10]} 38. Qxd5 {[%clk 0:00:30]}  Rxd5 {[%clk 0:00:11]} 39. Ke4 {[%clk 0:00:30]}  Rd7 {[%clk 0:00:09]} 40. Rd1 {[%clk 0:00:26]}  a4 {[%clk 0:00:08]} 41. Rd3 {[%clk 0:00:23]}  a3 {[%clk 0:00:03]} 42. Bc1 {[%clk 0:00:24]}  Rb7 {[%clk 0:00:03]} 43. Bd2 {[%clk 0:00:24]}  Rb8 {[%clk 0:00:03]} 44. Be1 {[%clk 0:00:23]}  Rb7 {[%clk 0:00:03]} 45. Rd2 {[%clk 0:00:23]}  Rb8 {[%clk 0:00:02]} 46. Kd3 {[%clk 0:00:23]}  Rd8 {[%clk 0:00:01]} 47. Kc4 {[%clk 0:00:23]}  Kg6 {[%clk 0:00:02]} 48. Rd3 {[%clk 0:00:23]}  Kf5 {[%clk 0:00:03]} 49. Bd2 {[%clk 0:00:23]}  Ke4 {[%clk 0:00:03]} 50. Re3+ {[%clk 0:00:22]}  Kf5 {[%clk 0:00:04]} 51. Rd3 {[%clk 0:00:20]}  Ke4 {[%clk 0:00:04]} 52. Re3+ {[%clk 0:00:20]}  Kf5 {[%clk 0:00:04]} 53. Rd3 {[%clk 0:00:21]} 1/2-1/2


[Site "https://www.chess.com"]

[Event "Titled Tuesday Blitz November 22 Late 2022"]
[White "Polster, Christian"]
[Black "Aggelis, Nikolaos"]
[WhiteFideId "12965081"]
[BlackFideId "4213220"]
[WhiteElo "2209"]
[BlackElo "2189"]
[Result "0-1"]
[Round "03"]
[TimeControl "180+1"]
[Date "2022.11.23"]
[WhiteClock "0:00:04"]
[BlackClock "0:00:04"]

1. e4 {[%clk 0:03:00]}  c6 {[%clk 0:02:56]} 2. d4 {[%clk 0:02:58]}  d5 {[%clk 0:02:56]} 3. Nc3 {[%clk 0:02:55]}  dxe4 {[%clk 0:02:53]} 4. Nxe4 {[%clk 0:02:56]}  Bf5 {[%clk 0:02:52]} 5. Ng3 {[%clk 0:02:53]}  Bg6 {[%clk 0:02:51]} 6. h4 {[%clk 0:02:53]}  h6 {[%clk 0:02:50]} 7. Nf3 {[%clk 0:02:52]}  Nd7 {[%clk 0:02:49]} 8. h5 {[%clk 0:02:50]}  Bh7 {[%clk 0:02:49]} 9. Bd3 {[%clk 0:02:49]}  Bxd3 {[%clk 0:02:49]} 10. Qxd3 {[%clk 0:02:50]}  Ngf6 {[%clk 0:02:50]} 11. Bf4 {[%clk 0:02:38]}  e6 {[%clk 0:02:48]} 12. O-O-O {[%clk 0:02:35]}  Qa5 {[%clk 0:02:27]} 13. Kb1 {[%clk 0:02:27]}  Nd5 {[%clk 0:02:27]} 14. Bd2 {[%clk 0:02:25]}  Qc7 {[%clk 0:02:28]} 15. Ne2 {[%clk 0:02:05]}  Be7 {[%clk 0:02:21]} 16. g4 {[%clk 0:01:59]}  O-O-O {[%clk 0:02:18]} 17. a3 {[%clk 0:01:53]}  Rhe8 {[%clk 0:02:06]} 18. c4 {[%clk 0:01:38]}  N5f6 {[%clk 0:02:00]} 19. g5 {[%clk 0:01:25]}  hxg5 {[%clk 0:01:56]} 20. Nxg5 {[%clk 0:01:26]}  Ne5 {[%clk 0:01:41]} 21. Qc2 {[%clk 0:00:57]}  Neg4 {[%clk 0:01:39]} 22. Nxf7 {[%clk 0:00:48]}  Nxf2 {[%clk 0:01:39]} 23. Nxd8 {[%clk 0:00:47]}  Qxd8 {[%clk 0:01:21]} 24. h6 {[%clk 0:00:27]}  gxh6 {[%clk 0:01:16]} 25. Rxh6 {[%clk 0:00:23]}  Nxd1 {[%clk 0:01:15]} 26. Qxd1 {[%clk 0:00:23]}  Bf8 {[%clk 0:01:07]} 27. Rh3 {[%clk 0:00:19]}  Ne4 {[%clk 0:01:07]} 28. Bf4 {[%clk 0:00:17]}  Bd6 {[%clk 0:01:06]} 29. Re3 {[%clk 0:00:16]}  Nf2 {[%clk 0:00:54]} 30. Qg1 {[%clk 0:00:16]}  Bxf4 {[%clk 0:00:50]} 31. Nxf4 {[%clk 0:00:15]}  Qxd4 {[%clk 0:00:49]} 32. Qxf2 {[%clk 0:00:15]}  Rf8 {[%clk 0:00:50]} 33. Rf3 {[%clk 0:00:15]}  Qxc4 {[%clk 0:00:47]} 34. Nxe6 {[%clk 0:00:08]}  Rxf3 {[%clk 0:00:41]} 35. Qxf3 {[%clk 0:00:07]}  Qxe6 {[%clk 0:00:42]} 36. Qd3 {[%clk 0:00:06]}  Kc7 {[%clk 0:00:38]} 37. Kc2 {[%clk 0:00:07]}  Qd6 {[%clk 0:00:37]} 38. Qh7+ {[%clk 0:00:07]}  Qd7 {[%clk 0:00:36]} 39. Qh2+ {[%clk 0:00:07]}  Qd6 {[%clk 0:00:34]} 40. Qh7+ {[%clk 0:00:07]}  Kb6 {[%clk 0:00:34]} 41. Qf5 {[%clk 0:00:06]}  a5 {[%clk 0:00:34]} 42. Qf3 {[%clk 0:00:04]}  Qd5 {[%clk 0:00:33]} 43. Qh3 {[%clk 0:00:02]}  Qd6 {[%clk 0:00:29]} 44. Qh7 {[%clk 0:00:02]}  Qe5 {[%clk 0:00:28]} 45. Kc1 {[%clk 0:00:02]}  Qd5 {[%clk 0:00:26]} 46. Kc2 {[%clk 0:00:03]}  Qc4+ {[%clk 0:00:26]} 47. Kb1 {[%clk 0:00:03]}  a4 {[%clk 0:00:25]} 48. Ka1 {[%clk 0:00:02]}  Ka6 {[%clk 0:00:23]} 49. Kb1 {[%clk 0:00:02]}  Qe2 {[%clk 0:00:23]} 50. Ka1 {[%clk 0:00:02]}  Kb6 {[%clk 0:00:22]} 51. Kb1 {[%clk 0:00:02]}  Qd1+ {[%clk 0:00:23]} 52. Ka2 {[%clk 0:00:02]}  Qd5+ {[%clk 0:00:23]} 53. Kb1 {[%clk 0:00:03]}  c5 {[%clk 0:00:21]} 54. Qg6+ {[%clk 0:00:03]}  Qc6 {[%clk 0:00:21]} 55. Qd3 {[%clk 0:00:03]}  Qe6 {[%clk 0:00:20]} 56. Qc3 {[%clk 0:00:03]}  Qb3 {[%clk 0:00:20]} 57. Qf6+ {[%clk 0:00:02]}  Kb5 {[%clk 0:00:19]} 58. Qf1+ {[%clk 0:00:03]}  Qc4 {[%clk 0:00:17]} 59. Qf5 {[%clk 0:00:03]}  Qd4 {[%clk 0:00:15]} 60. Qf7 {[%clk 0:00:03]}  Qd3+ {[%clk 0:00:15]} 61. Ka1 {[%clk 0:00:03]}  Qd1+ {[%clk 0:00:14]} 62. Ka2 {[%clk 0:00:03]}  Qh1 {[%clk 0:00:12]} 63. Qe7 {[%clk 0:00:02]}  Qd5+ {[%clk 0:00:11]} 64. Kb1 {[%clk 0:00:02]}  Kb6 {[%clk 0:00:10]} 65. Qe3 {[%clk 0:00:01]}  Qd4 {[%clk 0:00:10]} 66. Qe6+ {[%clk 0:00:01]}  Kb5 {[%clk 0:00:10]} 67. Qe2+ {[%clk 0:00:02]}  Qc4 {[%clk 0:00:09]} 68. Qe8+ {[%clk 0:00:02]}  Kb6 {[%clk 0:00:09]} 69. Qd8+ {[%clk 0:00:03]}  Ka6 {[%clk 0:00:09]} 70. Qd6+ {[%clk 0:00:03]}  Ka7 {[%clk 0:00:08]} 71. Qc7 {[%clk 0:00:03]}  Qf1+ {[%clk 0:00:08]} 72. Ka2 {[%clk 0:00:04]}  Qb5 {[%clk 0:00:08]} 73. Qd8 {[%clk 0:00:03]}  c4 {[%clk 0:00:08]} 74. Qd4+ {[%clk 0:00:03]}  Ka6 {[%clk 0:00:08]} 75. Qd6+ {[%clk 0:00:03]}  b6 {[%clk 0:00:09]} 76. Qb8 {[%clk 0:00:03]}  Qb3+ {[%clk 0:00:08]} 77. Kb1 {[%clk 0:00:04]}  Qd3+ {[%clk 0:00:08]} 78. Ka2 {[%clk 0:00:04]}  Qb3+ {[%clk 0:00:08]} 79. Kb1 {[%clk 0:00:04]}  c3 {[%clk 0:00:09]} 80. Qa8+ {[%clk 0:00:04]}  Kb5 {[%clk 0:00:09]} 81. Qe8+ {[%clk 0:00:04]}  Kc5 {[%clk 0:00:08]} 82. Qe7+ {[%clk 0:00:04]}  Kd4 {[%clk 0:00:07]} 83. Qf6+ {[%clk 0:00:04]}  Kd3 {[%clk 0:00:07]} 84. Qf3+ {[%clk 0:00:04]}  Kc4 {[%clk 0:00:06]} 85. Qe4+ {[%clk 0:00:04]}  Kb5 {[%clk 0:00:06]} 86. Qe8+ {[%clk 0:00:04]}  Kc5 {[%clk 0:00:05]} 87. Qe6 {[%clk 0:00:04]}  Qxe6 {[%clk 0:00:04]} 0-1


[Site "https://www.chess.com"]

[Event "Titled Tuesday Blitz November 22 Late 2022"]
[White "Principe, Gerson"]
[Black "Sabar, Ethmane Daouda"]
[WhiteFideId "3804550"]
[BlackFideId "19600097"]
[WhiteElo "2280"]
[BlackElo "1950"]
[Result "1-0"]
[Round "03"]
[TimeControl "180+1"]
[Date "2022.11.23"]
[WhiteClock "0:00:09"]
[BlackClock "0:00:01"]

1. d4 {[%clk 0:03:00]}  d5 {[%clk 0:02:59]} 2. Nf3 {[%clk 0:03:00]}  Nf6 {[%clk 0:02:59]} 3. c4 {[%clk 0:02:59]}  dxc4 {[%clk 0:02:53]} 4. e3 {[%clk 0:02:59]}  a6 {[%clk 0:02:50]} 5. Bxc4 {[%clk 0:02:58]}  b5 {[%clk 0:02:50]} 6. Be2 {[%clk 0:02:54]}  Bb7 {[%clk 0:02:50]} 7. O-O {[%clk 0:02:55]}  e6 {[%clk 0:02:50]} 8. a4 {[%clk 0:02:55]}  c6 {[%clk 0:02:45]} 9. Nbd2 {[%clk 0:02:47]}  Nbd7 {[%clk 0:02:41]} 10. Nb3 {[%clk 0:02:47]}  Rc8 {[%clk 0:02:32]} 11. Bd2 {[%clk 0:02:46]}  Bd6 {[%clk 0:02:17]} 12. Ba5 {[%clk 0:02:33]}  Qe7 {[%clk 0:02:17]} 13. Qd2 {[%clk 0:02:15]}  Ne4 {[%clk 0:02:12]} 14. Qc2 {[%clk 0:02:12]}  c5 {[%clk 0:02:11]} 15. dxc5 {[%clk 0:01:59]}  Ndxc5 {[%clk 0:02:08]} 16. axb5 {[%clk 0:01:57]}  O-O {[%clk 0:01:48]} 17. bxa6 {[%clk 0:01:49]}  Nxa6 {[%clk 0:01:49]} 18. Qb1 {[%clk 0:01:43]}  Nb4 {[%clk 0:01:43]} 19. Bxb4 {[%clk 0:01:41]}  Bxb4 {[%clk 0:01:44]} 20. Nbd4 {[%clk 0:01:20]}  Bd5 {[%clk 0:01:32]} 21. Bd3 {[%clk 0:01:14]}  f5 {[%clk 0:01:26]} 22. Rc1 {[%clk 0:01:08]}  g5 {[%clk 0:01:04]} 23. Rxc8 {[%clk 0:00:49]}  Rxc8 {[%clk 0:01:05]} 24. Qd1 {[%clk 0:00:48]}  g4 {[%clk 0:01:01]} 25. Ne5 {[%clk 0:00:45]}  Qf6 {[%clk 0:00:40]} 26. f4 {[%clk 0:00:31]}  gxf3 {[%clk 0:00:38]} 27. Nexf3 {[%clk 0:00:31]}  Qh6 {[%clk 0:00:34]} 28. Qe2 {[%clk 0:00:26]}  Rc7 {[%clk 0:00:23]} 29. Rf1 {[%clk 0:00:26]}  Rg7 {[%clk 0:00:22]} 30. Bc4 {[%clk 0:00:15]}  Nf6 {[%clk 0:00:16]} 31. Bxd5 {[%clk 0:00:15]}  Nxd5 {[%clk 0:00:17]} 32. Re1 {[%clk 0:00:14]}  Bc5 {[%clk 0:00:05]} 33. b3 {[%clk 0:00:13]}  Qg6 {[%clk 0:00:05]} 34. g3 {[%clk 0:00:13]}  h5 {[%clk 0:00:04]} 35. Kh1 {[%clk 0:00:13]}  e5 {[%clk 0:00:02]} 36. e4 {[%clk 0:00:11]}  fxe4 {[%clk 0:00:01]} 37. Nxe5 {[%clk 0:00:09]} 1-0


[Site "https://www.chess.com"]

[Event "Titled Tuesday Blitz November 22 Late 2022"]
[White "Rasulov, Vugar"]
[Black "Banzea, Alexandru-Bogdan"]
[WhiteFideId "13402390"]
[BlackFideId "1232622"]
[WhiteElo "2509"]
[BlackElo "2294"]
[Result "0-1"]
[Round "03"]
[TimeControl "180+1"]
[Date "2022.11.22"]
[WhiteClock "0:00:06"]
[BlackClock "0:00:14"]

1. e4 {[%clk 0:03:00]}  d5 {[%clk 0:02:56]} 2. exd5 {[%clk 0:03:00]}  c6 {[%clk 0:02:56]} 3. c4 {[%clk 0:02:58]}  cxd5 {[%clk 0:02:57]} 4. d4 {[%clk 0:02:58]}  Nf6 {[%clk 0:02:56]} 5. Nc3 {[%clk 0:02:58]}  Nc6 {[%clk 0:02:56]} 6. Bg5 {[%clk 0:02:55]}  Ne4 {[%clk 0:02:56]} 7. cxd5 {[%clk 0:02:48]}  Nxc3 {[%clk 0:02:54]} 8. bxc3 {[%clk 0:02:49]}  Qxd5 {[%clk 0:02:54]} 9. Nf3 {[%clk 0:02:48]}  Bg4 {[%clk 0:02:52]} 10. Be3 {[%clk 0:02:44]}  Bxf3 {[%clk 0:02:52]} 11. Qxf3 {[%clk 0:02:43]}  Qxf3 {[%clk 0:02:53]} 12. gxf3 {[%clk 0:02:44]}  e6 {[%clk 0:02:54]} 13. f4 {[%clk 0:02:42]}  Be7 {[%clk 0:02:35]} 14. Rb1 {[%clk 0:02:41]}  b6 {[%clk 0:02:21]} 15. f5 {[%clk 0:02:36]}  O-O {[%clk 0:01:38]} 16. fxe6 {[%clk 0:02:35]}  fxe6 {[%clk 0:01:39]} 17. Bc4 {[%clk 0:02:30]}  Kh8 {[%clk 0:01:23]} 18. Bxe6 {[%clk 0:02:25]}  Bf6 {[%clk 0:01:24]} 19. Bd5 {[%clk 0:02:12]}  Rac8 {[%clk 0:01:20]} 20. Ke2 {[%clk 0:02:07]}  Rfd8 {[%clk 0:01:20]} 21. Bxc6 {[%clk 0:02:01]}  Rxc6 {[%clk 0:01:21]} 22. Kd3 {[%clk 0:02:01]}  Rdc8 {[%clk 0:01:21]} 23. Rhc1 {[%clk 0:02:02]}  Kg8 {[%clk 0:01:20]} 24. c4 {[%clk 0:02:01]}  Kf7 {[%clk 0:01:21]} 25. d5 {[%clk 0:02:01]}  R6c7 {[%clk 0:01:21]} 26. a4 {[%clk 0:01:59]}  Be7 {[%clk 0:01:19]} 27. a5 {[%clk 0:01:54]}  bxa5 {[%clk 0:01:14]} 28. Rb5 {[%clk 0:01:54]}  Ba3 {[%clk 0:01:13]} 29. Rc2 {[%clk 0:01:52]}  Bb4 {[%clk 0:01:13]} 30. c5 {[%clk 0:01:44]}  a6 {[%clk 0:01:14]} 31. Rxb4 {[%clk 0:01:45]}  axb4 {[%clk 0:01:13]} 32. Kc4 {[%clk 0:01:44]}  a5 {[%clk 0:01:07]} 33. Ra2 {[%clk 0:01:44]}  Ra8 {[%clk 0:01:03]} 34. c6 {[%clk 0:01:42]}  Rcc8 {[%clk 0:00:41]} 35. Bc5 {[%clk 0:01:36]}  Rcb8 {[%clk 0:00:34]} 36. c7 {[%clk 0:01:32]}  Rc8 {[%clk 0:00:32]} 37. d6 {[%clk 0:01:32]}  Ke6 {[%clk 0:00:27]} 38. f4 {[%clk 0:00:54]}  Kd7 {[%clk 0:00:26]} 39. Kd5 {[%clk 0:00:51]}  b3 {[%clk 0:00:21]} 40. Rg2 {[%clk 0:00:52]}  Rg8 {[%clk 0:00:15]} 41. f5 {[%clk 0:00:52]}  a4 {[%clk 0:00:15]} 42. Ba3 {[%clk 0:00:51]}  Ra5+ {[%clk 0:00:13]} 43. Ke4 {[%clk 0:00:48]}  Rb5 {[%clk 0:00:09]} 44. f6 {[%clk 0:00:41]}  Re8+ {[%clk 0:00:09]} 45. Kd4 {[%clk 0:00:41]}  gxf6 {[%clk 0:00:09]} 46. Rg7+ {[%clk 0:00:40]}  Kc6 {[%clk 0:00:07]} 47. d7 {[%clk 0:00:40]}  Rd5+ {[%clk 0:00:05]} 48. Kc4 {[%clk 0:00:38]}  Rxd7 {[%clk 0:00:06]} 49. Rg3 {[%clk 0:00:36]}  Re4+ {[%clk 0:00:05]} 50. Kc3 {[%clk 0:00:36]}  Rxc7 {[%clk 0:00:05]} 51. Kd3 {[%clk 0:00:34]}  Re6 {[%clk 0:00:04]} 52. Rg4 {[%clk 0:00:34]}  Kb5 {[%clk 0:00:04]} 53. Rb4+ {[%clk 0:00:34]}  Ka5 {[%clk 0:00:05]} 54. Rb8 {[%clk 0:00:35]}  Re5 {[%clk 0:00:04]} 55. Ra8+ {[%clk 0:00:30]}  Kb5 {[%clk 0:00:05]} 56. Rb8+ {[%clk 0:00:31]}  Kc6 {[%clk 0:00:05]} 57. Ra8 {[%clk 0:00:29]}  Rd5+ {[%clk 0:00:06]} 58. Kc4 {[%clk 0:00:28]}  Rd1 {[%clk 0:00:05]} 59. Rxa4 {[%clk 0:00:26]}  Kb6+ {[%clk 0:00:05]} 60. Kxb3 {[%clk 0:00:26]}  Rd3+ {[%clk 0:00:05]} 61. Kb2 {[%clk 0:00:27]}  Rh3 {[%clk 0:00:06]} 62. Rf4 {[%clk 0:00:26]}  Rxh2+ {[%clk 0:00:06]} 63. Kb3 {[%clk 0:00:26]}  Rh3+ {[%clk 0:00:07]} 64. Kb4 {[%clk 0:00:25]}  Rc6 {[%clk 0:00:07]} 65. Bb2 {[%clk 0:00:25]}  h5 {[%clk 0:00:07]} 66. Bd4+ {[%clk 0:00:26]}  Kb7 {[%clk 0:00:07]} 67. Rf5 {[%clk 0:00:25]}  Rh4 {[%clk 0:00:06]} 68. Rd5 {[%clk 0:00:24]}  Kc7 {[%clk 0:00:05]} 69. Kb5 {[%clk 0:00:18]}  Rd6 {[%clk 0:00:06]} 70. Rc5+ {[%clk 0:00:18]}  Kd7 {[%clk 0:00:06]} 71. Bf2 {[%clk 0:00:16]}  Rh3 {[%clk 0:00:05]} 72. Rf5 {[%clk 0:00:13]}  Ke6 {[%clk 0:00:06]} 73. Rf4 {[%clk 0:00:13]}  Rd5+ {[%clk 0:00:06]} 74. Kc4 {[%clk 0:00:12]}  Rf5 {[%clk 0:00:07]} 75. Re4+ {[%clk 0:00:12]}  Re5 {[%clk 0:00:08]} 76. Rf4 {[%clk 0:00:12]}  Rh1 {[%clk 0:00:07]} 77. Bd4 {[%clk 0:00:13]}  Rf5 {[%clk 0:00:07]} 78. Re4+ {[%clk 0:00:13]}  Kf7 {[%clk 0:00:07]} 79. Re2 {[%clk 0:00:12]}  Rhf1 {[%clk 0:00:08]} 80. Ra2 {[%clk 0:00:12]}  Kg6 {[%clk 0:00:09]} 81. Rg2+ {[%clk 0:00:11]}  Rg5 {[%clk 0:00:09]} 82. Ra2 {[%clk 0:00:12]}  h4 {[%clk 0:00:09]} 83. Ra8 {[%clk 0:00:12]}  Rh5 {[%clk 0:00:10]} 84. Rg8+ {[%clk 0:00:08]}  Kf7 {[%clk 0:00:10]} 85. Rg2 {[%clk 0:00:08]}  h3 {[%clk 0:00:10]} 86. Rh2 {[%clk 0:00:09]}  Rf4 {[%clk 0:00:10]} 87. Kd3 {[%clk 0:00:09]}  Rd5 {[%clk 0:00:11]} 88. Ke3 {[%clk 0:00:08]}  Rdxd4 {[%clk 0:00:11]} 89. Rxh3 {[%clk 0:00:09]}  Rde4+ {[%clk 0:00:12]} 90. Kd3 {[%clk 0:00:09]}  Rh4 {[%clk 0:00:12]} 91. Rg3 {[%clk 0:00:09]}  Reg4 {[%clk 0:00:13]} 92. Rf3 {[%clk 0:00:10]}  Rf4 {[%clk 0:00:13]} 93. Rg3 {[%clk 0:00:10]}  f5 {[%clk 0:00:14]} 94. Ke3 {[%clk 0:00:09]}  Re4+ {[%clk 0:00:14]} 95. Kd3 {[%clk 0:00:10]}  Ra4 {[%clk 0:00:14]} 96. Rg1 {[%clk 0:00:09]}  Rh3+ {[%clk 0:00:14]} 97. Kc2 {[%clk 0:00:09]}  Ra2+ {[%clk 0:00:15]} 98. Kb1 {[%clk 0:00:09]}  Rf2 {[%clk 0:00:14]} 99. Rc1 {[%clk 0:00:09]}  Kg6 {[%clk 0:00:13]} 100. Rg1+ {[%clk 0:00:09]}  Kf6 {[%clk 0:00:14]} 101. Kc1 {[%clk 0:00:10]}  Rfh2 {[%clk 0:00:14]} 102. Rg8 {[%clk 0:00:09]}  Ke5 {[%clk 0:00:14]} 103. Re8+ {[%clk 0:00:09]}  Kf4 {[%clk 0:00:14]} 104. Ra8 {[%clk 0:00:10]}  Re3 {[%clk 0:00:14]} 105. Kd1 {[%clk 0:00:09]}  Kf3 {[%clk 0:00:14]} 106. Rg8 {[%clk 0:00:08]}  f4 {[%clk 0:00:14]} 107. Rc8 {[%clk 0:00:08]}  Ra3 {[%clk 0:00:14]} 108. Rc1 {[%clk 0:00:06]}  Rh1+ {[%clk 0:00:14]} 0-1


[Site "https://www.chess.com"]

[Event "Titled Tuesday Blitz November 22 Late 2022"]
[White "Robson, Ray"]
[Black "Janaszak, Dawid"]
[WhiteFideId "2023970"]
[BlackFideId "1119206"]
[WhiteElo "2951"]
[BlackElo "2536"]
[Result "1-0"]
[Round "03"]
[TimeControl "180+1"]
[Date "2022.11.23"]
[WhiteClock "0:00:12"]
[BlackClock "0:00:04"]

1. e4 {[%clk 0:03:00]}  c5 {[%clk 0:02:59]} 2. Nf3 {[%clk 0:03:01]}  Nc6 {[%clk 0:02:59]} 3. Bb5 {[%clk 0:03:00]}  g6 {[%clk 0:02:59]} 4. Bxc6 {[%clk 0:02:59]}  bxc6 {[%clk 0:02:57]} 5. d4 {[%clk 0:02:55]}  Bg7 {[%clk 0:02:55]} 6. dxc5 {[%clk 0:02:54]}  Qa5+ {[%clk 0:02:47]} 7. Nbd2 {[%clk 0:02:54]}  Qxc5 {[%clk 0:02:44]} 8. O-O {[%clk 0:02:53]}  Nf6 {[%clk 0:02:40]} 9. a3 {[%clk 0:02:21]}  O-O {[%clk 0:02:25]} 10. b4 {[%clk 0:02:21]}  Qh5 {[%clk 0:02:18]} 11. Bb2 {[%clk 0:02:14]}  a5 {[%clk 0:02:02]} 12. h3 {[%clk 0:02:08]}  Rb8 {[%clk 0:01:44]} 13. Bc3 {[%clk 0:01:40]}  axb4 {[%clk 0:01:42]} 14. axb4 {[%clk 0:01:41]}  d6 {[%clk 0:01:36]} 15. Ra5 {[%clk 0:01:39]}  Rb5 {[%clk 0:01:32]} 16. Ra7 {[%clk 0:01:39]}  Bxh3 {[%clk 0:01:21]} 17. Nd4 {[%clk 0:00:33]}  Ng4 {[%clk 0:00:48]} 18. Nxb5 {[%clk 0:00:17]}  Bxg2 {[%clk 0:00:47]} 19. Kxg2 {[%clk 0:00:17]}  Qh2+ {[%clk 0:00:45]} 20. Kf3 {[%clk 0:00:17]}  Qh3+ {[%clk 0:00:19]} 21. Ke2 {[%clk 0:00:17]}  cxb5 {[%clk 0:00:09]} 22. Bxg7 {[%clk 0:00:15]}  Kxg7 {[%clk 0:00:10]} 23. Nf3 {[%clk 0:00:13]}  Nf6 {[%clk 0:00:06]} 24. Rxe7 {[%clk 0:00:12]}  Qg4 {[%clk 0:00:06]} 25. Rg1 {[%clk 0:00:11]}  Qf4 {[%clk 0:00:05]} 26. Qd2 {[%clk 0:00:11]}  Nh5 {[%clk 0:00:03]} 27. Qxf4 {[%clk 0:00:11]}  Nxf4+ {[%clk 0:00:04]} 28. Ke3 {[%clk 0:00:12]} 1-0


[Site "https://www.chess.com"]